bitfinex/quotes_BTCUSD_20250825
["timestamp","ask_amount","ask_price","bid_price","bid_amount"]
[1756160849907,0.62030264,110590.0,110580.0,0.14409275]
[1756160850394,0.62030264,110590.0,110580.0,0.30033275]
[1756160850819,0.62030264,110590.0,110580.0,0.14409275]
[1756160851323,0.62030264,110590.0,110580.0,0.2278]
[1756160851538,0.62330264,110590.0,110580.0,0.2278]
[1756160851842,5.62330264,110590.0,110580.0,0.2278]
[1756160852298,5.65523961,110590.0,110580.0,0.2278]
[1756160852522,5.65523961,110590.0,110580.0,0.07056]
[1756160852760,5.65523961,110590.0,110580.0,0.2268]
[1756160852951,5.65523961,110590.0,110580.0,0.07056]
[1756160853168,5.65523961,110590.0,110580.0,0.2268]
[1756160853379,5.65523961,110590.0,110580.0,0.2258]
[1756160854457,5.62330264,110590.0,110580.0,0.2258]
[1756160854632,5.62330264,110590.0,110580.0,0.15624]
[1756160856460,5.65523961,110590.0,110580.0,0.15624]
[1756160857121,5.45055575,110590.0,110580.0,0.15624]
[1756160857312,5.63140392,110590.0,110580.0,0.15624]
[1756160857546,5.59646695,110590.0,110580.0,0.15624]
[1756160857771,5.52629748,110590.0,110580.0,0.15624]
[1756160858673,0.18086453,110580.0,110570.0,0.07279]
[1756160858915,5.18294453,110580.0,110570.0,0.23105]
[1756160859163,0.18294453,110580.0,110570.0,0.23105]
[1756160859382,0.21015053,110580.0,110570.0,0.23105]
[1756160859607,0.20807053,110580.0,110570.0,0.23105]
[1756160863167,0.20807053,110580.0,110570.0,0.41193088]
[1756160863593,0.18086453,110580.0,110570.0,0.41193088]
[1756160864692,0.18086453,110580.0,110570.0,0.25969088]
[1756160864913,0.18086453,110580.0,110570.0,0.23505]
[1756160870403,5.52286453,110580.0,110570.0,0.07356]
[1756160870660,5.52286453,110580.0,110570.0,0.2298]
[1756160870870,5.60973418,110580.0,110570.0,0.2298]
[1756160871342,5.63694118,110580.0,110570.0,0.2268]
[1756160871594,5.63694118,110580.0,110570.0,0.2278]
[1756160872324,5.64002118,110580.0,110570.0,0.2268]
[1756160872819,5.64002118,110580.0,110570.0,0.2278]
[1756160873339,5.63694118,110580.0,110570.0,0.2278]
[1756160875244,5.55007153,110580.0,110570.0,0.2278]
[1756160875973,5.55007153,110580.0,110570.0,0.2299]
[1756160876209,5.55007153,110580.0,110570.0,0.23292]
[1756160876922,5.55007153,110580.0,110570.0,0.2278]
[1756160878120,5.54807153,110580.0,110570.0,0.23292]
[1756160878406,5.55005153,110580.0,110570.0,0.23292]
[1756160879742,0.54807153,110580.0,110570.0,0.41380088]
[1756160879945,0.18086453,110580.0,110570.0,0.41380088]
[1756160880173,0.52086453,110580.0,110570.0,0.41380088]
[1756160880635,0.34,110580.0,110570.0,0.41380088]
[1756160880838,0.34,110580.0,110570.0,0.48052387]
[1756160881067,0.34,110580.0,110570.0,0.41380088]
[1756160881963,0.34,110580.0,110570.0,0.41180088]
[1756160882208,0.34,110580.0,110570.0,0.41380088]
[1756160882639,0.52086453,110580.0,110570.0,0.41180088]
[1756160882871,0.52086453,110580.0,110570.0,0.23092]
[1756160883368,0.52086453,110580.0,110570.0,0.23192]
[1756160883990,0.52086453,110580.0,110570.0,0.23492]
[1756160884208,0.52086453,110580.0,110570.0,0.41580088]
[1756160885333,0.18084817,110590.0,110580.0,0.17186453]
[1756160885542,0.52084817,110590.0,110580.0,0.17924533]
[1756160885751,0.52084817,110590.0,110580.0,0.33318453]
[1756160886197,0.52084817,110590.0,110580.0,0.16132]
[1756160886400,0.52084817,110590.0,110580.0,0.1635808]
[1756160886606,0.52084817,110590.0,110580.0,0.1645808]
[1756160886944,0.52084817,110590.0,110580.0,0.0083808]
[1756160887158,0.52084817,110590.0,110580.0,0.34544533]
[1756160887359,0.52084817,110590.0,110580.0,0.34318453]
[1756160887771,0.52084817,110590.0,110580.0,0.16332]
[1756160888858,0.52281817,110590.0,110580.0,0.16332]
[1756160889399,0.52281817,110590.0,110580.0,0.1655808]
[1756160889610,0.52283817,110590.0,110580.0,0.1655808]
[1756160889832,0.52084817,110590.0,110580.0,0.1655808]
[1756160890233,0.52084817,110590.0,110580.0,0.34644533]
[1756160890449,0.52084817,110590.0,110580.0,0.34418453]
[1756160892460,0.21709116,110600.0,110580.0,0.34418453]
[1756160892711,0.18084817,110590.0,110580.0,0.34116453]
[1756160893054,0.18988816,110600.0,110580.0,0.34116453]
[1756160893260,0.52988816,110600.0,110590.0,0.0052806]
[1756160893541,0.52988816,110600.0,110590.0,0.0073806]
[1756160895017,0.52988816,110600.0,110590.0,0.18822877]
[1756160895214,0.52988816,110600.0,110590.0,0.18596817]
[1756160897346,0.52084657,110600.0,110590.0,0.18596817]
[1756160897771,0.34,110600.0,110590.0,0.18596817]
[1756160899527,0.52083182,110600.0,110590.0,0.18596817]
[1756160899751,0.22744031,110610.0,110600.0,0.18083182]
[1756160900028,0.55839954,110610.0,110600.0,0.41167182]
[1756160900248,0.56037954,110610.0,110600.0,0.07468]
[1756160900458,0.56037954,110610.0,110600.0,0.2308]
[1756160900901,0.56037954,110610.0,110600.0,0.22568]
[1756160901764,0.56037954,110610.0,110600.0,0.22668]
[1756160901942,0.56037954,110610.0,110600.0,0.22768]
[1756160902704,0.59781779,110610.0,110600.0,0.07156]
[1756160902902,0.59781779,110610.0,110600.0,0.22768]
[1756160904702,0.56037954,110610.0,110600.0,0.22768]
[1756160904906,0.56347954,110610.0,110600.0,0.22768]
[1756160905822,0.56037954,110610.0,110600.0,0.22768]
[1756160907545,0.56339954,110610.0,110600.0,0.22768]
[1756160907754,0.56037954,110610.0,110600.0,0.22768]
[1756160908265,0.56037954,110610.0,110600.0,0.23293]
[1756160908487,0.55839954,110610.0,110600.0,0.41376182]
[1756160909301,0.55839954,110610.0,110600.0,0.23293]
[1756160910578,0.55839954,110610.0,110600.0,0.23084]
[1756160910820,0.56045954,110610.0,110600.0,0.23293]
[1756160911039,0.55839954,110610.0,110600.0,0.23293]
[1756160912056,0.56045954,110610.0,110600.0,0.23293]
[1756160912858,0.55839954,110610.0,110600.0,0.41376182]
[1756160913064,0.03758407,110610.0,110600.0,0.41376182]
[1756160915156,0.03758407,110610.0,110600.0,0.41276182]
[1756160916095,0.03758407,110610.0,110600.0,0.41576182]
[1756160916301,0.2173274,110630.0,110610.0,0.18081547]
[1756160916507,0.18082484,110620.0,110610.0,0.18081547]
[1756160916740,0.18082484,110620.0,110610.0,0.34230547]
[1756160916972,0.21741366,110630.0,110620.0,0.18079913]
[1756160917177,0.18954238,110630.0,110620.0,0.18288913]
[1756160917412,0.19160238,110630.0,110620.0,0.18604913]
[1756160917615,0.2185456,110630.0,110620.0,0.18604913]
[1756160917826,0.2185456,110630.0,110620.0,0.00525]
[1756160918032,0.2185456,110630.0,110620.0,0.1562]
[1756160918238,0.2185456,110630.0,110620.0,0.33699913]
[1756160918450,0.2164856,110630.0,110620.0,0.15829]
[1756160918701,0.2185456,110630.0,110620.0,0.33699913]
[1756160918899,0.18079913,110620.0,110610.0,0.18397547]
[1756160919109,0.20801226,110630.0,110610.0,0.34254547]
[1756160919313,0.21648486,110630.0,110610.0,0.34254547]
[1756160919745,0.21648486,110630.0,110620.0,0.18079913]
[1756160919973,0.21854486,110630.0,110620.0,0.18288913]
[1756160920180,0.21854486,110630.0,110620.0,0.18604913]
[1756160920407,0.21854486,110630.0,110610.0,0.33829547]
[1756160920629,0.18079913,110620.0,110610.0,0.00416]
[1756160920832,0.18285913,110620.0,110610.0,0.16325]
[1756160921037,0.18285913,110620.0,110610.0,0.15816]
[1756160921652,0.18081547,110610.0,110600.0,0.253551]
[1756160921873,0.18081547,110610.0,110600.0,0.412761]
[1756160922008,0.18081547,110610.0,110600.0,0.412801]
[1756160923378,0.18079913,110620.0,110610.0,0.18081547]
[1756160923593,0.18079913,110620.0,110610.0,0.18290547]
[1756160923840,0.18079913,110620.0,110610.0,0.18606547]
[1756160924603,0.18079913,110620.0,110610.0,0.00525]
[1756160924833,0.18284913,110620.0,110610.0,0.15704]
[1756160925098,0.18284913,110620.0,110610.0,0.33994547]
[1756160925361,0.18079913,110620.0,110610.0,0.34310547]
[1756160925856,0.18079913,110620.0,110610.0,0.34510547]
[1756160926406,0.58424639,110630.0,110620.0,0.18079913]
[1756160926604,0.58424639,110630.0,110610.0,0.34301547]
[1756160926605,0.60968652,110630.0,110610.0,0.34301547]
[1756160926823,0.61174652,110630.0,110620.0,0.18604913]
[1756160927575,0.61174652,110630.0,110620.0,0.17704913]
[1756160927784,0.61174652,110630.0,110620.0,0.00209]
[1756160927993,0.60968652,110630.0,110620.0,0.00525]
[1756160928195,0.61174652,110630.0,110620.0,0.25858188]
[1756160928440,0.60327083,110630.0,110610.0,0.18397547]
[1756160928665,0.64316405,110630.0,110620.0,0.15848]
[1756160929054,0.64316366,110630.0,110620.0,0.15848]
[1756160929255,0.18079913,110620.0,110610.0,0.18397547]
[1756160929462,0.18079913,110620.0,110610.0,0.34462547]
[1756160929872,0.18079913,110620.0,110610.0,0.18606547]
[1756160930077,0.18079913,110620.0,110610.0,0.34506547]
[1756160930448,0.18079913,110620.0,110610.0,0.34606547]
[1756160931859,0.18079913,110620.0,110610.0,0.34706547]
[1756160934382,0.18079913,110620.0,110610.0,0.34690547]
[1756160934860,0.18079913,110620.0,110610.0,0.38755224]
[1756160935279,0.18079913,110620.0,110610.0,0.22871224]
[1756160935490,0.25936368,110620.0,110610.0,0.16076]
[1756160935692,0.25936368,110620.0,110610.0,0.16072]
[1756160935867,0.26784769,110620.0,110610.0,0.16072]
[1756160936101,0.26784769,110620.0,110610.0,0.002]
[1756160936317,0.25936368,110620.0,110610.0,0.16072]
[1756160937079,0.25936368,110620.0,110610.0,0.16068]
[1756160937479,0.25936368,110620.0,110610.0,0.1606]
[1756160937685,0.25936368,110620.0,110610.0,0.002]
[1756160937882,0.60237368,110620.0,110610.0,0.16056]
[1756160938062,0.61085885,110620.0,110610.0,0.16056]
[1756160938269,0.63805485,110620.0,110610.0,0.16052]
[1756160938496,0.62956968,110620.0,110610.0,0.16052]
[1756160939048,0.62655968,110620.0,110610.0,0.16052]
[1756160939257,0.62956968,110620.0,110610.0,0.16052]
[1756160939475,0.64371876,110620.0,110610.0,0.16052]
[1756160940533,0.65220547,110620.0,110610.0,0.16052]
[1756160940798,0.64919547,110620.0,110610.0,0.16052]
[1756160941444,0.57269092,110620.0,110610.0,0.16052]
[1756160941659,0.57269092,110620.0,110610.0,0.16589]
[1756160942141,0.57269092,110620.0,110610.0,0.34896566]
[1756160942367,0.56214421,110620.0,110610.0,0.34670547]
[1756160942605,0.54799513,110620.0,110610.0,0.16589]
[1756160942787,0.62652978,110620.0,110610.0,0.00963019]
[1756160943048,0.62652978,110620.0,110610.0,0.16803019]
[1756160943272,0.62652978,110620.0,110610.0,0.16266019]
[1756160943497,0.62652978,110620.0,110610.0,0.16480019]
[1756160943719,0.62652978,110620.0,110610.0,0.16803019]
[1756160944374,0.62652978,110620.0,110610.0,0.16480019]
[1756160944819,0.62652978,110620.0,110610.0,0.00414]
[1756160945034,0.62652978,110620.0,110610.0,0.1625]
[1756160945918,0.6406787,110620.0,110610.0,0.1625]
[1756160946085,0.6406787,110620.0,110610.0,0.16573]
[1756160946891,0.6406787,110620.0,110610.0,0.16036]
[1756160947394,0.6406787,110620.0,110610.0,0.1625]
[1756160947763,0.6406787,110620.0,110610.0,0.16573]
[1756160948169,0.6406787,110620.0,110610.0,0.16036]
[1756160948364,0.6406787,110620.0,110610.0,0.16573]
[1756160949237,0.56417405,110620.0,110610.0,0.16573]
[1756160950772,0.56419405,110620.0,110610.0,0.16573]
[1756160952661,0.55004513,110620.0,110610.0,0.16573]
[1756160953677,0.55004513,110620.0,110610.0,0.16036]
[1756160953893,0.55004513,110620.0,110610.0,0.16573]
[1756160954543,0.56462009,110620.0,110610.0,0.16573]
[1756160954778,0.56257009,110620.0,110610.0,0.34654547]
[1756160954993,0.56257009,110620.0,110610.0,0.16573]
[1756160955894,0.57671997,110620.0,110610.0,0.16573]
[1756160956135,0.56214501,110620.0,110610.0,0.34654547]
[1756160957657,0.56214501,110620.0,110610.0,0.16573]
[1756160958306,0.56214501,110620.0,110610.0,0.34654547]
[1756160959862,0.56418501,110620.0,110610.0,0.16573]
[1756160960054,0.56418501,110620.0,110610.0,0.00737]
[1756160960289,0.57497413,110620.0,110610.0,0.16501]
[1756160960531,0.57497413,110620.0,110610.0,0.15964]
[1756160962554,0.56082425,110620.0,110610.0,0.002]
[1756160962757,0.56082425,110620.0,110610.0,0.1594]
[1756160964918,0.56082425,110620.0,110610.0,0.34235547]
[1756160965185,0.56082425,110620.0,110610.0,0.16477]
[1756160965391,0.55003513,110620.0,110610.0,0.34558547]
[1756160965625,0.55003513,110620.0,110610.0,0.16477]
[1756160965883,0.56418507,110620.0,110610.0,0.16477]
[1756160966535,0.56418507,110620.0,110610.0,0.34558547]
[1756160966798,0.56418507,110620.0,110610.0,0.16477]
[1756160967097,0.56418507,110620.0,110610.0,0.34558547]
[1756160967499,0.56214507,110620.0,110610.0,0.34558547]
[1756160968865,0.64006472,110620.0,110610.0,0.34558547]
[1756160969104,0.56214507,110620.0,110610.0,0.34558547]
[1756160970979,0.56214507,110620.0,110610.0,0.16477]
[1756160971625,0.56425507,110620.0,110610.0,0.16477]
[1756160972728,0.56425507,110620.0,110610.0,0.00737]
[1756160972962,0.61008727,110620.0,110610.0,0.002]
[1756160973177,0.61008727,110620.0,110610.0,0.15872]
[1756160974789,0.61008727,110620.0,110610.0,0.07156]
[1756160975010,0.61008727,110620.0,110610.0,0.22824]
[1756160975422,0.56425507,110620.0,110610.0,0.23344]
[1756160975929,0.56425507,110620.0,110610.0,0.07676]
[1756160976139,0.56425507,110620.0,110610.0,0.2334]
[1756160976518,0.55010513,110620.0,110610.0,0.2334]
[1756160976958,0.62692078,110620.0,110610.0,0.2282]
[1756160981104,0.54799513,110620.0,110610.0,0.2334]
[1756160981333,0.54799513,110620.0,110610.0,0.07676]
[1756160981566,0.54799513,110620.0,110610.0,0.23534019]
[1756160981793,0.54799513,110620.0,110610.0,0.23308]
[1756160982685,0.54998513,110620.0,110610.0,0.23004]
[1756160982918,0.54998513,110620.0,110610.0,0.23308]
[1756160983136,0.54799513,110620.0,110610.0,0.41389547]
[1756160983331,0.367196,110620.0,110610.0,0.41389547]
[1756160983577,0.54799513,110620.0,110610.0,0.41389547]
[1756160983995,0.62449978,110620.0,110610.0,0.41389547]
[1756160984451,0.62648978,110620.0,110610.0,0.22788]
[1756160984905,0.6386497,110620.0,110610.0,0.23308]
[1756160985122,0.6406397,110620.0,110610.0,0.23308]
[1756160985566,0.3006397,110620.0,110610.0,0.23308]
[1756160985977,0.22413505,110620.0,110610.0,0.23308]
[1756160987059,0.22214505,110620.0,110610.0,0.41389547]
[1756160988553,0.01414992,110620.0,110610.0,0.41389547]
[1756160989773,0.19494905,110620.0,110610.0,0.41389547]
[1756160990544,0.19494905,110620.0,110610.0,0.23332]
[1756160991982,0.19705905,110620.0,110610.0,0.22432]
[1756160992204,0.19494905,110620.0,110610.0,0.22432]
[1756160992440,0.22214205,110620.0,110610.0,0.22432]
[1756160992964,0.21010213,110620.0,110610.0,0.22416]
[1756160994048,0.55010213,110620.0,110610.0,0.40497547]
[1756160994260,0.54799213,110620.0,110610.0,0.40497547]
[1756160994488,0.55009213,110620.0,110610.0,0.40497547]
[1756160994696,0.54799213,110620.0,110610.0,0.40497547]
[1756160994831,0.54799213,110620.0,110610.0,0.44564668]
[1756160995700,0.56214045,110620.0,110610.0,0.44564668]
[1756160997699,0.38134132,110620.0,110610.0,0.44564668]
[1756160997916,0.53494745,110620.0,110610.0,0.44564668]
[1756160998120,0.56213945,110620.0,110610.0,0.44564668]
[1756160998556,0.38134032,110620.0,110610.0,0.44564668]
[1756161000514,0.01414832,110620.0,110610.0,0.44564668]
[1756161002017,0.01414832,110620.0,110610.0,0.44656668]
[1756161002219,0.01414832,110620.0,110610.0,0.44856668]
[1756161002435,0.39442048,110630.0,110620.0,0.18079913]
[1756161002685,0.39442048,110630.0,110620.0,0.33928913]
[1756161002891,0.39442048,110630.0,110620.0,0.34231913]
[1756161003697,0.57520326,110630.0,110620.0,0.18599913]
[1756161003937,0.39442048,110630.0,110620.0,0.34331913]
[1756161004378,0.39442048,110630.0,110620.0,0.18699913]
[1756161004769,0.57520326,110630.0,110620.0,0.18699913]
[1756161005008,0.57520326,110630.0,110620.0,0.34331913]
[1756161005230,0.39442048,110630.0,110620.0,0.34331913]
[1756161005434,0.57520326,110630.0,110620.0,0.34331913]
[1756161006087,0.39442048,110630.0,110620.0,0.34331913]
[1756161006295,0.57715326,110630.0,110620.0,0.34331913]
[1756161006410,0.65782108,110630.0,110620.0,0.15732]
[1756161006632,0.66089108,110630.0,110620.0,0.001]
[1756161006837,0.69380434,110630.0,110620.0,0.001]
[1756161007031,0.66089108,110630.0,110620.0,0.15732]
[1756161007635,0.66089108,110630.0,110620.0,0.001]
[1756161007860,0.66189108,110630.0,110620.0,0.15732]
[1756161008115,0.66189108,110630.0,110620.0,0.15632]
[1756161008532,0.52079913,110620.0,110610.0,0.06256]
[1756161008686,0.60961878,110620.0,110610.0,0.06256]
[1756161009018,0.61268878,110620.0,110610.0,0.21888]
[1756161009191,0.62683709,110620.0,110610.0,0.21888]
[1756161009373,0.62683709,110620.0,110610.0,0.06256]
[1756161009851,5.62683709,110620.0,110610.0,0.21888]
[1756161010813,5.62683709,110620.0,110610.0,0.21988]
[1756161011021,5.62683709,110620.0,110610.0,0.21888]
[1756161011220,5.65403609,110620.0,110610.0,0.21888]
[1756161012539,5.63988778,110620.0,110610.0,0.21888]
[1756161015460,5.63988778,110620.0,110610.0,0.06256]
[1756161015666,5.63988778,110620.0,110610.0,0.21888]
[1756161015871,5.65403727,110620.0,110610.0,0.21888]
[1756161019419,5.65096727,110620.0,110610.0,0.21888]
[1756161020672,5.65403727,110620.0,110610.0,0.21888]
[1756161025467,5.63988778,110620.0,110610.0,0.21888]
[1756161026995,5.65403745,110620.0,110610.0,0.06256]
[1756161027204,5.65403745,110620.0,110610.0,0.21888]
[1756161028249,5.65403745,110620.0,110610.0,0.06256]
[1756161028509,5.65403745,110620.0,110610.0,0.21888]
[1756161029975,5.65403745,110620.0,110610.0,0.06256]
[1756161030188,5.65403745,110620.0,110610.0,0.21888]
[1756161031031,0.52083182,110600.0,110590.0,0.06956]
[1756161031242,5.58303002,110600.0,110590.0,0.22588]
[1756161031601,5.58102002,110600.0,110590.0,0.2312]
[1756161031821,0.62237414,110600.0,110590.0,0.2312]
[1756161032724,0.62435414,110600.0,110590.0,0.22588]
[1756161032953,0.62435414,110600.0,110590.0,0.2312]
[1756161033110,0.62435414,110600.0,110590.0,0.2322]
[1756161033312,0.62435414,110600.0,110590.0,0.2332]
[1756161034284,0.61020302,110600.0,110590.0,0.22995]
[1756161034522,0.61020302,110600.0,110590.0,0.2332]
[1756161035080,0.54803482,110600.0,110590.0,0.2332]
[1756161037536,0.56166325,110600.0,110590.0,0.2332]
[1756161039762,0.56218574,110600.0,110590.0,0.41404817]
[1756161039970,0.38135392,110600.0,110590.0,0.41404817]
[1756161040177,0.04135392,110600.0,110590.0,0.41404817]
[1756161040379,0.04135392,110600.0,110590.0,0.48079269]
[1756161040622,0.01415092,110600.0,110590.0,0.41404817]
[1756161045865,0.027197,110610.0,110600.0,0.18083182]
[1756161046112,0.5,110610.0,110600.0,0.18290182]
[1756161046345,0.19494878,110620.0,110610.0,0.18081547]
[1756161046579,0.19494878,110620.0,110610.0,0.33920547]
[1756161046777,0.04134465,110620.0,110610.0,0.34245547]
[1756161047053,0.54134465,110620.0,110610.0,0.34245547]
[1756161047291,0.04134465,110620.0,110610.0,0.3947842]
[1756161047991,0.01414965,110620.0,110610.0,0.3947842]
[1756161048223,0.5480138,110630.0,110620.0,0.18079913]
[1756161048495,0.5480138,110630.0,110620.0,0.25242913]
[1756161048669,0.5480138,110630.0,110620.0,0.25567913]
[1756161049497,0.5480138,110630.0,110620.0,0.25667913]
[1756161051193,0.5480138,110630.0,110620.0,0.07588]
[1756161051613,0.5480138,110630.0,110620.0,0.05345234]
[1756161052274,0.5499938,110630.0,110620.0,0.05345234]
[1756161052490,0.5530838,110630.0,110620.0,0.20445234]
[1756161052715,0.5771868,110630.0,110620.0,0.20445234]
[1756161052920,0.5802768,110630.0,110620.0,0.20445234]
[1756161055000,0.66125708,110630.0,110620.0,0.20445234]
[1756161055720,0.66125708,110630.0,110620.0,0.19545234]
[1756161056616,0.65816708,110630.0,110620.0,0.19545234]
[1756161056809,0.5771868,110630.0,110620.0,0.20060234]
[1756161057540,0.5771868,110630.0,110620.0,0.19545234]
[1756161060658,0.5752068,110630.0,110620.0,0.20060234]
[1756161062012,0.65768008,110630.0,110620.0,0.20056234]
[1756161062210,0.65768008,110630.0,110620.0,0.19541234]
[1756161062454,0.5772068,110630.0,110620.0,0.19541234]
[1756161062885,0.5500138,110630.0,110620.0,0.19541234]
[1756161063096,0.5529938,110630.0,110620.0,0.03913234]
[1756161063352,0.5529938,110630.0,110620.0,0.19541234]
[1756161063551,0.5500138,110630.0,110620.0,0.19541234]
[1756161063757,0.62826578,110630.0,110620.0,0.19541234]
[1756161067283,0.5500138,110630.0,110620.0,0.19541234]
[1756161067486,0.5500138,110630.0,110620.0,0.20056234]
[1756161067890,0.5480138,110630.0,110620.0,0.20056234]
[1756161069360,0.54801226,110630.0,110620.0,0.20056234]
[1756161069868,0.54801226,110630.0,110620.0,0.38136147]
[1756161070303,0.54801226,110630.0,110620.0,0.20056234]
[1756161071705,0.02722948,110630.0,110620.0,0.45389422]
[1756161072357,0.02722948,110630.0,110620.0,0.47134324]
[1756161072358,0.00028626,110630.0,110620.0,0.47134324]
[1756161074065,0.00028626,110630.0,110620.0,0.47130324]
[1756161074499,0.00028626,110630.0,110620.0,0.47030324]
[1756161074900,0.00028626,110630.0,110620.0,0.47230324]
[1756161075579,0.00028626,110630.0,110620.0,0.47330324]
[1756161076966,0.00028626,110630.0,110620.0,0.54143372]
[1756161077179,0.00028626,110630.0,110620.0,0.40077049]
[1756161078478,0.01442962,110630.0,110620.0,0.40077049]
[1756161079820,0.01411531,110630.0,110620.0,0.40077049]
[1756161080664,0.01411531,110630.0,110620.0,0.87252524]
[1756161080871,0.01411531,110630.0,110620.0,0.40077049]
[1756161081138,0.01411531,110630.0,110620.0,1.07346564]
[1756161081367,0.0254655,110640.0,110620.0,1.07346564]
[1756161081591,0.02551317,110640.0,110630.0,0.20154618]
[1756161081850,0.02551317,110640.0,110630.0,0.20366618]
[1756161082312,0.02551317,110640.0,110630.0,0.35986618]
[1756161082517,0.02551317,110640.0,110630.0,0.39274946]
[1756161082747,0.02551317,110640.0,110630.0,0.41993246]
[1756161082930,0.02551317,110640.0,110630.0,0.35986618]
[1756161083195,0.02751317,110640.0,110630.0,0.18721716]
[1756161083391,0.02551317,110640.0,110630.0,0.34337716]
[1756161084140,0.02551317,110640.0,110630.0,0.34537716]
[1756161085012,0.03965561,110640.0,110630.0,0.34537716]
[1756161086874,0.03965561,110640.0,110630.0,0.61407716]
[1756161087099,0.03965561,110640.0,110630.0,0.61379278]
[1756161087354,0.03965561,110640.0,110630.0,0.45763278]
[1756161087558,0.22251205,110640.0,110630.0,0.60864278]
[1756161087774,0.22251205,110640.0,110630.0,0.61069278]
[1756161087982,0.22251205,110640.0,110630.0,0.34508278]
[1756161088414,0.22251205,110640.0,110630.0,0.18378278]
[1756161088626,0.22251205,110640.0,110630.0,0.33994278]
[1756161089925,0.22251205,110640.0,110630.0,0.34508278]
[1756161091086,0.22251205,110640.0,110630.0,0.38493629]
[1756161091333,0.04174561,110640.0,110630.0,0.22877629]
[1756161091539,0.04174561,110640.0,110630.0,0.38489629]
[1756161091729,0.03965561,110640.0,110630.0,0.38489629]
[1756161091937,0.04174561,110640.0,110630.0,0.38489629]
[1756161092195,0.22251205,110640.0,110630.0,0.37975629]
[1756161093255,0.20836961,110640.0,110630.0,0.37975629]
[1756161093693,0.20836961,110640.0,110630.0,0.22877629]
[1756161093914,0.20836961,110640.0,110630.0,0.38489629]
[1756161094139,0.25066813,110640.0,110630.0,0.37975629]
[1756161094371,0.25066813,110640.0,110630.0,0.04285351]
[1756161094590,0.20836961,110640.0,110630.0,0.22877629]
[1756161094811,0.20836961,110640.0,110630.0,0.22363629]
[1756161095102,0.21132961,110640.0,110630.0,0.003]
[1756161095323,0.55132961,110640.0,110630.0,0.003]
[1756161095545,0.62762813,110640.0,110630.0,0.15912]
[1756161095778,0.62762813,110640.0,110630.0,0.15812]
[1756161095995,0.55132961,110640.0,110630.0,0.15812]
[1756161096858,0.18078278,110630.0,110620.0,0.03813234]
[1756161097070,0.18078278,110630.0,110620.0,0.19939234]
[1756161097282,0.18078278,110630.0,110620.0,0.38019147]
[1756161098605,0.18287278,110630.0,110620.0,0.19939234]
[1756161099066,0.18287278,110630.0,110620.0,0.38119147]
[1756161099298,0.56042422,110640.0,110620.0,0.38119147]
[1756161100062,0.56042422,110640.0,110630.0,0.18613256]
[1756161100269,0.56042422,110640.0,110630.0,0.18592278]
[1756161100483,0.37965778,110640.0,110630.0,0.18592278]
[1756161101553,0.56042422,110640.0,110630.0,0.18592278]
[1756161102933,0.18078278,110630.0,110620.0,0.22202147]
[1756161103152,0.56050422,110640.0,110630.0,0.18592278]
[1756161103370,0.56042422,110640.0,110630.0,0.18592278]
[1756161103582,0.63891695,110640.0,110630.0,0.18592278]
[1756161103772,0.56050422,110640.0,110630.0,0.18692278]
[1756161104008,0.37965778,110640.0,110630.0,0.18692278]
[1756161104214,0.03965778,110640.0,110630.0,0.18692278]
[1756161104419,0.02551317,110640.0,110630.0,0.2043718]
[1756161105199,0.02551317,110640.0,110630.0,0.3604518]
[1756161105602,0.02551317,110640.0,110630.0,0.2043718]
[1756161105804,0.23208647,110640.0,110630.0,0.18692278]
[1756161106043,0.23208647,110640.0,110630.0,0.33886278]
[1756161106573,0.23208647,110640.0,110630.0,0.33786278]
[1756161106768,0.02551317,110640.0,110630.0,0.33991278]
[1756161107010,0.02551317,110640.0,110630.0,0.34500278]
[1756161107188,0.02551317,110640.0,110630.0,0.3624518]
[1756161107626,0.03965594,110640.0,110630.0,0.3624518]
[1756161108704,0.03965594,110640.0,110630.0,0.43097992]
[1756161108918,0.02551317,110640.0,110630.0,0.43097992]
[1756161110688,0.02551317,110640.0,110630.0,0.90273467]
[1756161111090,0.02551317,110640.0,110630.0,1.17143467]
[1756161111888,0.02551317,110640.0,110630.0,1.17043467]
[1756161112155,0.02551317,110640.0,110630.0,1.17143467]
[1756161112368,0.02551317,110640.0,110630.0,1.25831942]
[1756161112369,0.0396544,110640.0,110630.0,1.25831942]
[1756161112579,0.02551317,110640.0,110630.0,0.78656467]
[1756161112797,0.02551317,110640.0,110630.0,0.71727655]
[1756161112999,0.02551317,110640.0,110630.0,0.71927655]
[1756161113436,0.02551317,110640.0,110630.0,0.71727655]
[1756161113654,0.02551317,110640.0,110630.0,0.72127655]
[1756161113870,0.02551317,110640.0,110630.0,0.4780718]
[1756161114075,0.02551317,110640.0,110630.0,0.6343518]
[1756161114489,0.02551317,110640.0,110630.0,0.72122145]
[1756161114708,0.02551317,110640.0,110630.0,0.56494145]
[1756161114913,0.02551317,110640.0,110630.0,0.72126145]
[1756161115967,0.0396551,110640.0,110630.0,0.72126145]
[1756161117569,0.0396551,110640.0,110630.0,0.74844445]
[1756161118596,0.0396551,110640.0,110630.0,0.47974445]
[1756161120962,0.0396551,110640.0,110630.0,1.03838395]
[1756161121380,0.02551317,110640.0,110630.0,1.03838395]
[1756161121596,0.02551317,110640.0,110630.0,1.13396395]
[1756161121856,0.02551317,110640.0,110630.0,1.03838395]
[1756161122065,0.02551317,110640.0,110630.0,1.02938395]
[1756161122297,0.02551317,110640.0,110630.0,1.42938395]
[1756161122710,0.02551317,110640.0,110630.0,1.69808395]
[1756161123349,0.02080017,110640.0,110630.0,1.69808395]
[1756161124649,0.02080017,110640.0,110630.0,1.29808395]
[1756161124866,0.02080017,110640.0,110630.0,1.29608395]
[1756161125082,0.02080017,110640.0,110630.0,1.29908395]
[1756161125253,0.02080017,110640.0,110630.0,1.69908395]
[1756161125777,0.02080017,110640.0,110630.0,1.29908395]
[1756161126218,0.02080017,110640.0,110630.0,1.29508395]
[1756161126426,0.02080017,110640.0,110630.0,1.70008395]
[1756161127261,0.0002,110650.0,110640.0,0.66997021]
[1756161127435,0.0002,110650.0,110640.0,0.94577824]
[1756161127591,0.0002,110650.0,110640.0,0.95085824]
[1756161128418,0.0002,110650.0,110640.0,0.95285824]
[1756161128719,0.0002,110650.0,110640.0,0.95648124]
[1756161128903,1.82218402,110680.0,110670.0,0.19816646]
[1756161129099,1.85147523,110680.0,110670.0,0.42372646]
[1756161131572,1.84840523,110680.0,110670.0,0.48925101]
[1756161131799,1.84840523,110680.0,110670.0,0.48417101]
[1756161132048,1.84840523,110680.0,110670.0,0.42372646]
[1756161132263,2.02910635,110680.0,110670.0,0.42432646]
[1756161132827,1.82118021,110680.0,110670.0,0.42432646]
[1756161133861,1.82118021,110680.0,110670.0,0.42532646]
[1756161135198,1.82118021,110680.0,110670.0,0.465479]
[1756161135784,1.84823767,110680.0,110670.0,0.465479]
[1756161138243,1.84723767,110680.0,110670.0,0.465479]